bitfinex-derivatives/quotes_BTCF0:USTF0_20240820
["timestamp","ask_amount","ask_price","bid_price","bid_amount"]
[1724168754867,0.8763,58966.0,58965.0,0.428621]
[1724168755474,0.8793,58966.0,58965.0,0.428621]
[1724168755777,1.0393,58966.0,58965.0,0.3608]
[1724168755967,1.0393,58966.0,58961.0,0.06895931]
[1724168756173,1.0393,58966.0,58963.0,0.067823]
[1724168756475,1.0393,58966.0,58965.0,0.067821]
[1724168756678,1.0403,58966.0,58965.0,0.067821]
[1724168757176,1.0403,58966.0,58962.0,3.77088]
[1724168757177,0.164,58966.0,58962.0,3.77088]
[1724168757378,0.067822,58965.0,58962.0,3.77]
[1724168757578,0.237822,58965.0,58962.0,3.82051546]
[1724168757788,0.237822,58965.0,58963.0,0.067823]
[1724168758076,0.237822,58965.0,58962.0,3.82139546]
[1724168758265,0.237822,58965.0,58962.0,3.82051546]
[1724168758471,0.237822,58965.0,58964.0,0.067822]
[1724168758671,0.598622,58965.0,58964.0,0.067822]
[1724168759473,0.17,58965.0,58964.0,0.067822]
[1724168759974,0.17,58965.0,58964.0,0.11833746]
[1724168760171,0.175,58965.0,58964.0,0.11833746]
[1724168760777,0.5358,58965.0,58962.0,0.05139546]
[1724168760976,0.5358,58965.0,58952.0,0.05051546]
[1724168760977,0.067828,58959.0,58952.0,0.05051546]
[1724168761182,0.067828,58959.0,58948.0,0.05051546]
[1724168761183,0.067838,58950.0,58948.0,0.05051546]
[1724168761475,0.227838,58950.0,58948.0,0.05051546]
[1724168761683,0.227838,58950.0,58945.0,3.838509]
[1724168761874,0.227838,58950.0,58945.0,3.837629]
[1724168762068,0.067839,58949.0,58948.0,0.05060754]
[1724168762276,0.598639,58949.0,58948.0,0.05060754]
[1724168762480,0.5308,58949.0,58945.0,3.77092]
[1724168762680,0.1396,58948.0,58945.0,3.77]
[1724168762884,0.067844,58946.0,58943.0,0.067846]
[1724168763180,0.067844,58946.0,58942.0,0.00025431]
[1724168763181,0.16,58946.0,58945.0,0.067843]
[1724168765774,0.16,58946.0,58942.0,0.00025431]
[1724168765971,0.428646,58943.0,58942.0,0.00025431]
[1724168766172,0.588646,58943.0,58942.0,0.00025431]
[1724168767681,0.5208,58943.0,58942.0,0.00025431]
[1724168767888,0.16,58943.0,58942.0,0.06810231]
[1724168769677,0.16,58943.0,58942.0,0.11870985]
[1724168771479,0.227846,58943.0,58942.0,0.11870985]
[1724168772084,0.227846,58943.0,58897.0,0.18137336]
[1724168772085,0.067852,58938.0,58917.0,0.06748928]
[1724168772280,0.428673,58920.0,58919.0,0.05063048]
[1724168772481,0.428673,58920.0,58909.0,0.3608]
[1724168772482,0.067875,58918.0,58917.0,0.00881249]
[1724168772777,0.16,58918.0,58914.0,0.05063048]
[1724168773086,0.00013484,58917.0,58916.0,0.067878]
[1724168773691,0.00013484,58917.0,58916.0,3.837878]
[1724168774186,0.00013484,58917.0,58916.0,3.88842921]
[1724168774587,0.00013484,58917.0,58916.0,3.84690654]
[1724168775689,0.00013484,58917.0,58916.0,4.35610654]
[1724168776388,0.3608,58927.0,58916.0,4.35610654]
[1724168776389,0.067861,58931.0,58926.0,0.067866]
[1724168776689,0.1690158,58931.0,58922.0,0.3608]
[1724168776882,0.1435,58944.0,58939.0,0.067851]
[1724168777186,0.16914976,58942.0,58934.0,0.067856]
[1724168777376,0.067849,58941.0,58935.0,0.00025453]
[1724168777578,0.16,58941.0,58940.0,0.06785]
[1724168777777,0.16,58941.0,58940.0,0.42865]
[1724168778391,0.87858001,58945.0,58940.0,0.3608]
[1724168778575,0.17,58945.0,58940.0,0.3608]
[1724168778780,0.00921406,58946.0,58945.0,0.067844]
[1724168778781,0.00025453,58946.0,58945.0,0.067844]
[1724168778979,0.00025453,58946.0,58945.0,4.346804]
[1724168779578,0.00025453,58946.0,58945.0,4.35567422]
[1724168780391,0.00025453,58946.0,58945.0,3.84671422]
[1724168781082,0.00025453,58946.0,58945.0,3.77]
[1724168781083,0.21809753,58946.0,58945.0,3.77]
[1724168781287,0.15025453,58946.0,58945.0,0.067844]
[1724168781788,0.15025453,58946.0,58945.0,3.837844]
[1724168781993,0.15325453,58946.0,58945.0,3.837844]
[1724168782684,0.15025453,58946.0,58945.0,4.198644]
[1724168782885,0.15525453,58946.0,58945.0,4.198644]
[1724168783588,0.15625453,58946.0,58945.0,3.838844]
[1724168783987,0.22409753,58946.0,58945.0,0.001]
[1724168784499,0.15625453,58946.0,58945.0,3.838844]
[1724168785181,0.15525453,58946.0,58945.0,3.837844]
[1724168785989,0.00025453,58946.0,58945.0,4.198644]
[1724168786294,0.006,58946.0,58945.0,4.708604]
[1724168786489,0.006,58946.0,58945.0,4.77605163]
[1724168786890,0.067833,58955.0,58945.0,4.77605163]
[1724168786891,0.00885085,58955.0,58954.0,0.067834]
[1724168787092,0.14,58955.0,58954.0,0.428634]
[1724168787307,0.14,58955.0,58954.0,0.067834]
[1724168788096,0.14,58955.0,58954.0,0.576714]
[1724168788289,0.00025453,58960.0,58954.0,0.576714]
[1724168788592,0.16025453,58960.0,58959.0,0.067828]
[1724168788988,0.16025453,58960.0,58959.0,0.11844079]
[1724168789183,0.16025453,58960.0,58959.0,0.067828]
[1724168789883,0.16025453,58960.0,58959.0,0.11843195]
[1724168790087,0.16025453,58960.0,58959.0,0.067828]
[1724168790597,0.16025453,58960.0,58958.0,9.5e-07]
[1724168790806,0.16025453,58960.0,58938.0,0.02811645]
[1724168790807,0.067848,58942.0,58938.0,0.02811645]
[1724168791095,0.06785,58940.0,58932.0,0.1366]
[1724168791300,0.3608,58935.0,58931.0,0.00019305]
[1724168791592,0.5308,58935.0,58931.0,0.00019305]
[1724168792191,0.169,58935.0,58931.0,0.00019305]
[1724168792499,0.169,58935.0,58934.0,0.067857]
[1724168792800,0.00025453,58939.0,58934.0,0.067857]
[1724168793092,0.006,58935.0,58934.0,0.067857]
[1724168793500,0.135718,58932.0,58931.0,0.001]
[1724168793799,0.067864,58928.0,58927.0,0.00025453]
[1724168794095,0.15,58928.0,58927.0,0.00025453]
[1724168794288,0.149,58928.0,58927.0,0.00025453]
[1724168794490,0.3608,58929.0,58927.0,0.00025453]
[1724168794996,0.3608,58932.0,58928.0,0.067864]
[1724168795904,0.067864,58928.0,58927.0,0.00025453]
[1724168796094,0.213864,58928.0,58927.0,0.00125453]
[1724168796990,0.207864,58928.0,58927.0,0.00025453]
[1724168797190,0.206864,58928.0,58927.0,0.00025453]
[1724168797795,0.783848,58928.0,58927.0,5.3e-07]
[1724168798099,0.783848,58928.0,58902.0,0.00021031]
[1724168798100,0.06788,58914.0,58904.0,0.3608]
[1724168798304,0.00017091,58913.0,58905.0,3.83789]
[1724168798802,0.067893,58903.0,58902.0,0.00021031]
[1724168799008,0.284786,58903.0,58902.0,0.00021031]
[1724168799297,0.216893,58903.0,58902.0,0.00021031]
[1724168799499,0.80308001,58906.0,58902.0,0.00021031]
[1724168799702,0.3608,58907.0,58902.0,0.06810331]
[1724168799899,0.3608,58907.0,58900.0,0.59421031]
[1724168800404,0.3608,58907.0,58902.0,0.067894]
[1724168800599,0.3608,58907.0,58900.0,0.59421031]
[1724168801009,0.44,58912.0,58906.0,0.067889]
[1724168801505,0.44,58912.0,58907.0,0.067887]
[1724168801803,0.36097091,58913.0,58905.0,0.3608]
[1724168801804,0.00017091,58913.0,58912.0,0.067882]
[1724168802312,0.00025453,58914.0,58913.0,0.067881]
[1724168802503,0.08274208,58951.0,58913.0,0.067881]
[1724168802504,0.3608,58927.0,58913.0,0.3608]
[1724168802703,0.3608,58927.0,58920.0,0.3608]
[1724168802906,0.3608,58927.0,58921.0,3.77]
[1724168803096,0.067857,58934.0,58925.0,0.3608]
[1724168803402,0.00017402,58932.0,58925.0,0.3608]
[1724168804398,0.00025453,58935.0,58934.0,0.067857]
[1724168804597,0.00025453,58935.0,58930.0,0.3608]
[1724168804598,0.3608,58946.0,58944.0,0.067845]
[1724168804806,0.3608,58954.0,58940.0,0.3608]
[1724168805106,0.16,58954.0,58947.0,0.3608]
[1724168805404,0.067864,58928.0,58911.0,0.3608]
[1724168805598,0.44,58915.0,58907.0,0.00016453]
[1724168805798,0.44,58915.0,58910.0,0.3608]
[1724168805995,0.44,58915.0,58911.0,0.067883]
[1724168806506,0.44,58915.0,58914.0,0.00025453]
[1724168806711,0.44,58923.0,58914.0,0.00025453]
[1724168807006,0.44,58923.0,58922.0,0.067871]
[1724168808705,0.44,58923.0,58922.0,3.837871]
[1724168809305,0.00025453,58925.0,58924.0,0.067868]
[1724168810711,0.00025453,58925.0,58902.0,0.0841265]
[1724168810712,1.32185453,58925.0,58902.0,0.0841265]
[1724168810917,0.507887,58908.0,58900.0,0.59421031]
[1724168811110,0.64796647,58908.0,58900.0,0.59421031]
[1724168811814,0.64796647,58908.0,58902.0,0.00025453]
[1724168812210,0.64796647,58908.0,58903.0,3.77]
[1724168812810,0.58007947,58908.0,58903.0,3.837892]
[1724168813114,0.44007947,58908.0,58903.0,3.837892]
[1724168813714,7.947e-05,58908.0,58907.0,0.06805253]
[1724168813912,0.44007947,58908.0,58907.0,0.00016453]
[1724168814113,0.60007947,58908.0,58907.0,0.00016453]
[1724168814423,0.44007947,58908.0,58907.0,3.77016453]
[1724168815505,0.80087947,58908.0,58907.0,3.77016453]
[1724168815911,0.97087947,58908.0,58907.0,3.77016453]
[1724168816716,0.53087947,58908.0,58907.0,3.83805253]
[1724168816908,0.36087947,58908.0,58907.0,3.83805253]
[1724168817217,7.947e-05,58908.0,58907.0,3.83805253]
[1724168821120,0.61007947,58908.0,58907.0,3.77016453]
[1724168821417,1.03876647,58908.0,58907.0,0.00016453]
[1724168822517,1.03876647,58908.0,58907.0,0.06805253]
[1724168823308,0.17007947,58908.0,58907.0,0.42885253]
[1724168823507,7.947e-05,58908.0,58907.0,0.42885253]
[1724168823721,0.15007947,58908.0,58907.0,0.06805253]
[1724168823917,0.15007947,58908.0,58907.0,3.83805253]
[1724168824319,0.15007947,58908.0,58907.0,0.06805253]
[1724168824519,0.57876647,58908.0,58907.0,0.06805253]
[1724168824717,1.01876647,58908.0,58907.0,0.00016453]
[1724168824921,1.01876647,58908.0,58907.0,3.77016453]
[1724168825315,1.01876647,58908.0,58907.0,0.00016453]
[1724168825619,0.067893,58903.0,58902.0,0.00025453]
[1724168825823,0.578693,58903.0,58902.0,0.00025453]
[1724168826413,0.5108,58903.0,58902.0,0.00025453]
[1724168826621,0.15,58903.0,58902.0,0.42894853]
[1724168827321,0.217893,58903.0,58902.0,0.00025453]
[1724168828325,0.217893,58903.0,58900.0,0.59421031]
[1724168828326,0.067895,58901.0,58900.0,0.59421031]
[1724168828516,0.578695,58901.0,58900.0,0.59421031]
[1724168828928,0.578695,58901.0,58900.0,4.36421031]
[1724168829513,0.578695,58901.0,58887.0,0.0841265]
[1724168829514,0.3608,58886.0,58874.0,0.08449433]
[1724168829721,1.1616,58875.0,58855.0,0.04249433]
[1724168829927,1.1616,58875.0,58851.0,0.3608]
[1724168829928,0.44,58856.0,58851.0,0.3608]
[1724168830317,0.3608,58860.0,58851.0,0.3608]
[1724168830518,0.00015766,58859.0,58851.0,0.3608]
[1724168830724,0.14015766,58859.0,58851.0,0.3608]
[1724168831119,0.00015766,58859.0,58851.0,0.3608]
[1724168831314,0.00015766,58859.0,58852.0,3.77]
[1724168831520,0.00015766,58859.0,58853.0,0.067949]
[1724168832124,0.3608,58876.0,58858.0,0.3608]
[1724168832335,0.3608,58876.0,58863.0,0.428738]
[1724168832527,0.3608,58876.0,58868.0,0.3608]
[1724168832728,0.3608,58876.0,58868.0,0.428732]
[1724168832933,0.3608,58876.0,58868.0,0.067932]
[1724168833121,0.00015593,58870.0,58868.0,0.067932]
[1724168833426,0.00015593,58870.0,58869.0,0.3608]
[1724168833627,0.44,58886.0,58869.0,0.8704]
[1724168833822,0.3608,58890.0,58879.0,0.3608]
[1724168834024,0.8008,58899.0,58889.0,0.3608]
[1724168834230,0.59,58899.0,58889.0,0.3608]
[1724168834620,7.427e-05,58898.0,58895.0,0.3608]
[1724168834826,7.427e-05,58898.0,58895.0,0.428702]
[1724168835727,7.427e-05,58898.0,58889.0,0.3608]
[1724168835728,0.40007427,58898.0,58889.0,0.3608]
[1724168835928,0.40007427,58898.0,58888.0,0.00025475]
[1724168835929,0.44,58890.0,58888.0,0.00025475]
[1724168836127,0.6,58890.0,58888.0,0.00025475]
[1724168836331,0.6,58890.0,58889.0,0.3608]
[1724168836834,0.44,58896.0,58892.0,0.067905]
[1724168837129,0.44,58896.0,58895.0,0.428702]
[1724168837340,0.58,58896.0,58895.0,0.428702]
[1724168837634,0.44,58896.0,58895.0,0.428702]
[1724168838035,0.44,58896.0,58888.0,0.00025475]
[1724168838036,1.778061,58896.0,58888.0,0.00025475]
[1724168838233,0.44,58889.0,58888.0,0.00025475]
[1724168838532,0.6,58889.0,58888.0,0.00025475]
[1724168838727,0.66798327,58889.0,58888.0,1e-08]
[1724168838923,0.60007427,58889.0,58885.0,0.3608]
[1724168839136,0.067912,58886.0,58885.0,0.3608]
[1724168839322,0.217912,58886.0,58885.0,0.3608]
[1724168839527,0.727392,58886.0,58885.0,0.3608]
[1724168839730,0.15,58886.0,58885.0,0.3608]
[1724168840032,0.83007427,58889.0,58885.0,0.428713]
[1724168840033,7.427e-05,58889.0,58885.0,0.428713]
[1724168840239,0.16007427,58889.0,58885.0,0.428713]
[1724168840433,0.44,58886.0,58874.0,0.3608]
[1724168840629,0.44,58875.0,58874.0,0.3608]
[1724168840824,0.60007427,58875.0,58874.0,0.3608]
[1724168841028,0.66799927,58875.0,58874.0,0.3608]
[1724168841537,0.60007427,58875.0,58874.0,0.3608]
[1724168842236,7.427e-05,58875.0,58874.0,0.428726]
[1724168842534,7.427e-05,58875.0,58860.0,0.19885044]
[1724168842535,1.36087427,58875.0,58852.0,0.10141808]
[1724168842737,1.36087427,58875.0,58853.0,0.3608]
[1724168842738,0.507942,58861.0,58853.0,0.3608]
[1724168842938,0.6,58861.0,58853.0,0.3608]
[1724168843235,0.3608,58870.0,58853.0,0.3608]
[1724168843236,0.44,58867.0,58864.0,0.067937]
[1724168843435,0.59,58867.0,58866.0,0.3608]
[1724168843631,0.59019953,58867.0,58865.0,0.067936]
[1724168843826,0.59019953,58867.0,58866.0,0.067935]
[1724168844037,0.067924,58876.0,58866.0,0.067935]
[1724168844038,0.507919,58880.0,58866.0,0.50964]
[1724168844238,0.5308,58878.0,58874.0,0.067926]
[1724168844436,0.5308,58878.0,58865.0,0.3608]
[1724168844634,0.44,58872.0,58865.0,0.3608]
[1724168844835,0.667928,58872.0,58865.0,0.428736]
[1724168845039,4.595e-05,58871.0,58865.0,0.428736]
[1724168845244,0.16004595,58871.0,58866.0,0.067935]
[1724168845539,0.16004595,58871.0,58865.0,0.3608]
[1724168845740,0.16004595,58871.0,58870.0,0.067931]
[1724168846135,4.595e-05,58871.0,58870.0,0.067931]
[1724168846337,4.595e-05,58871.0,58870.0,0.938331]
[1724168846840,0.92084595,58871.0,58857.0,0.1268]
[1724168847027,0.067944,58858.0,58857.0,0.1268]
[1724168847229,0.22798995,58858.0,58857.0,0.1268]
[1724168847425,0.16004595,58858.0,58857.0,0.1268]
[1724168847632,0.11755334,58858.0,58857.0,0.1268]
[1724168848036,0.507935,58866.0,58860.0,0.067941]
[1724168848230,0.00025475,58863.0,58860.0,0.067941]
[1724168848427,0.16025475,58863.0,58861.0,3.837941]
[1724168848743,0.16025475,58863.0,58859.0,0.3608]
[1724168848744,0.00025475,58863.0,58862.0,0.06794]
[1724168849242,0.3608,58875.0,58862.0,0.06794]
[1724168849243,0.3608,58882.0,58862.0,4.67968]
[1724168849534,0.15,58882.0,58873.0,0.3608]
[1724168849735,1.0263,58882.0,58873.0,0.3608]
[1724168850129,1.0263,58882.0,58878.0,0.3608]
[1724168850327,0.8763,58881.0,58880.0,0.067919]
[1724168850935,0.8763,58881.0,58880.0,3.837919]
[1724168852039,0.8763,58881.0,58857.0,0.3608]
[1724168852040,0.06794,58862.0,58857.0,0.3608]
[1724168852230,0.16,58862.0,58858.0,0.1176]
[1724168852433,0.16,58862.0,58859.0,3.77]
[1724168852640,0.16,58862.0,58861.0,0.067941]
[1724168853143,0.44,58871.0,58859.0,4.1308]
[1724168853144,0.00025475,58867.0,58859.0,0.3608]
[1724168853346,0.00025475,58867.0,58866.0,0.428735]
[1724168853844,1e-08,58867.0,58866.0,0.938375]
[1724168854032,1e-08,58867.0,58866.0,0.428735]
[1724168854658,1e-08,58867.0,58866.0,0.938375]
[1724168855041,1e-08,58867.0,58866.0,1.338375]
[1724168855239,1e-08,58867.0,58866.0,1.40631]
[1724168855645,1e-08,58867.0,58866.0,1.53568966]
[1724168856046,1e-08,58867.0,58866.0,1.40631]
[1724168856637,0.067918,58881.0,58880.0,0.067919]
[1724168856838,0.217918,58881.0,58880.0,0.067919]
[1724168857240,0.15,58881.0,58880.0,0.067919]
[1724168857436,0.067909,58889.0,58886.0,0.067912]
[1724168857635,0.067909,58889.0,58878.0,0.3608]
[1724168857636,0.06792,58879.0,58878.0,0.3608]
[1724168857840,0.06792,58879.0,58871.0,0.06752526]
[1724168857841,0.16,58879.0,58871.0,0.06752526]
[1724168858032,0.16,58879.0,58867.0,0.1216]
[1724168858033,0.428726,58874.0,58873.0,0.00025475]
[1724168858240,0.588726,58874.0,58873.0,0.00025475]
[1724168858442,0.588726,58874.0,58873.0,3.77025475]
[1724168858747,0.067938,58864.0,58857.0,0.13547026]
[1724168858949,0.227938,58864.0,58857.0,0.06752526]
[1724168859147,0.227938,58864.0,58854.0,0.3608]
[1724168859148,0.227938,58864.0,58858.0,3.83752526]
[1724168859342,0.16,58864.0,58862.0,0.06794]
[1724168859846,0.16,58864.0,58863.0,0.067939]
[1724168860935,0.44,58868.0,58865.0,0.067936]
[1724168861134,0.61,58868.0,58866.0,0.187335]
[1724168861437,0.17,58868.0,58866.0,0.187335]
[1724168861837,0.17,58868.0,58867.0,0.067934]
[1724168862043,0.00025475,58869.0,58868.0,0.067933]
[1724168862558,0.00025475,58869.0,58858.0,3.77923074]
[1724168862559,0.067934,58867.0,58862.0,0.07443122]
[1724168862846,0.067934,58867.0,58842.0,0.3608]
[1724168862847,0.067965,58840.0,58839.0,0.0676697]
[1724168863047,0.067965,58840.0,58836.0,0.0676697]
[1724168863048,0.58,58840.0,58836.0,0.0676697]
[1724168863236,0.06797,58836.0,58835.0,0.01554337]
[1724168863439,0.21797,58836.0,58835.0,0.01554337]
[1724168863640,0.57877,58836.0,58835.0,0.01554337]
[1724168864045,0.5108,58836.0,58835.0,0.01554337]
[1724168864237,1.02068,58836.0,58835.0,0.01554337]
[1724168864442,2.00295,58836.0,58835.0,0.01554337]
[1724168864842,0.6643,58836.0,58835.0,0.01554337]
[1724168865042,0.3608,58841.0,58839.0,0.067966]
[1724168865245,0.3608,58848.0,58840.0,0.20293703]
[1724168865450,0.3608,58848.0,58843.0,0.20293703]
[1724168865451,0.14025475,58844.0,58843.0,0.20293703]
[1724168865644,0.00025475,58844.0,58843.0,0.20293703]
[1724168865846,0.00025475,58844.0,58843.0,3.97293703]
[1724168866648,1e-08,58844.0,58843.0,3.97293703]
[1724168866844,1e-08,58844.0,58843.0,4.33373703]
[1724168868349,1e-08,58844.0,58843.0,4.1308]
[1724168868554,1e-08,58844.0,58843.0,4.33373703]
[1724168868753,1e-08,58844.0,58843.0,4.69453703]
[1724168869349,1e-08,58844.0,58843.0,4.76220673]
[1724168869549,1e-08,58844.0,58843.0,5.09453703]
[1724168870147,0.3608,58861.0,58860.0,0.067942]
[1724168870350,0.3608,58868.0,58860.0,0.20293702]
[1724168870550,0.17,58868.0,58865.0,0.20293702]
[1724168870750,0.17,58868.0,58866.0,3.77]
[1724168871445,0.17,58868.0,58864.0,0.067937]
[1724168871652,0.17,58868.0,58861.0,0.00025475]
[1724168871653,0.17,58868.0,58866.0,0.19614602]
[1724168871843,0.17,58868.0,58867.0,3.77]
[1724168872248,0.17,58868.0,58867.0,4.03408002]
[1724168872447,0.36105475,58873.0,58867.0,4.03408002]
[1724168872448,0.36105475,58873.0,58871.0,0.067929]
[1724168872657,0.36105475,58873.0,58872.0,0.26407402]
[1724168872658,0.16025475,58873.0,58872.0,0.26407402]
[1724168872858,0.00025475,58873.0,58872.0,0.26407402]
[1724168873550,0.00025475,58873.0,58872.0,0.62487402]
[1724168873551,1e-08,58873.0,58872.0,0.62487402]
[1724168873855,1e-08,58873.0,58872.0,0.26407402]
[1724168874050,1e-08,58873.0,58872.0,0.62487402]
[1724168874252,1e-08,58873.0,58872.0,0.26407402]
[1724168878758,1e-08,58873.0,58872.0,0.39057402]
[1724168882259,0.58872701,58873.0,58868.0,0.067932]
[1724168882464,0.06793,58871.0,58866.0,0.3608]
[1724168882664,0.14,58871.0,58868.0,0.067932]
[1724168882964,0.14,58871.0,58870.0,0.19614602]
[1724168883161,0.14,58871.0,58870.0,0.26407702]
[1724168885261,0.14,58871.0,58866.0,0.3608]
[1724168885262,0.067931,58870.0,58856.0,0.31423173]
[1724168885456,0.42874,58862.0,58858.0,0.067944]
[1724168885663,0.59874,58862.0,58858.0,0.067944]
[1724168885850,0.59874,58862.0,58856.0,0.2467]
[1724168885851,0.59874,58862.0,58856.0,4.0167]
[1724168886057,0.5308,58862.0,58856.0,4.0167]
[1724168886455,1.03934,58862.0,58856.0,4.084646]
[1724168886666,1.03934,58862.0,58856.0,3.837946]
[1724168887162,2.75738,58862.0,58853.0,0.067949]
[1724168887461,0.4406,58854.0,58845.0,0.3608]
[1724168887672,0.65855,58854.0,58850.0,0.19614602]
[1724168887964,0.5906,58854.0,58850.0,0.19614602]
[1724168888166,0.5906,58854.0,58853.0,0.26409602]
[1724168888560,0.3608,58857.0,58853.0,0.19614602]
[1724168888864,0.5108,58857.0,58856.0,0.19614602]
[1724168889060,0.15,58857.0,58856.0,0.19614602]
[1724168889572,0.00025475,58858.0,58857.0,0.067946]
[1724168889864,0.00025475,58858.0,58857.0,0.74959202]
[1724168891164,0.23819875,58858.0,58854.0,0.067948]
[1724168891361,0.067946,58857.0,58856.0,0.19614602]
[1724168891557,0.668546,58857.0,58856.0,0.19614602]
[1724168891963,0.6006,58857.0,58856.0,0.26409302]
[1724168892167,0.16,58857.0,58856.0,0.26409302]
[1724168892660,0.067951,58852.0,58851.0,0.3608]
[1724168892855,0.237951,58852.0,58851.0,0.3608]
[1724168893169,0.067954,58850.0,58845.0,0.3608]
[1724168893362,0.067956,58849.0,58847.0,0.067957]
[1724168893555,0.227956,58849.0,58847.0,0.067957]
[1724168893867,0.227956,58849.0,58848.0,0.19614602]
[1724168894668,0.227956,58849.0,58848.0,0.26410202]
[1724168895363,0.16,58849.0,58848.0,0.26410202]
[1724168895563,0.16,58849.0,58848.0,0.33205802]
[1724168895763,0.87858001,58851.0,58850.0,0.067954]
[1724168895973,1.0463,58851.0,58850.0,0.26410002]
[1724168897167,0.17,58851.0,58850.0,0.26410002]
[1724168898672,0.17,58851.0,58850.0,0.62490002]
[1724168900165,0.00228001,58860.0,58857.0,0.067946]
[1724168900471,0.41099837,58871.0,58859.0,0.49637132]
[1724168900472,0.06793,58871.0,58859.0,0.49637132]
[1724168900668,0.06793,58871.0,58759.0,0.28266851]
[1724168900866,0.06793,58871.0,58713.0,1.6261]
[1724168900867,0.3608,58812.0,58805.0,0.06515359]
[1724168901066,0.3608,58812.0,58796.0,0.06769969]
[1724168901067,0.8014,58806.0,58796.0,0.06769969]
[1724168901271,0.3608,58797.0,58793.0,0.06769969]
[1724168901464,0.3608,58797.0,58785.0,0.068028]
[1724168901465,0.3608,58797.0,58786.0,3.83769969]
[1724168901773,0.06682799,58820.0,58786.0,3.83769969]
[1724168901774,0.3608,58810.0,58794.0,0.8014]
[1724168901967,0.37013182,58820.0,58809.0,0.3608]
[1724168902471,0.37013182,58820.0,58803.0,0.3608]
[1724168902472,0.3608,58812.0,58803.0,0.3608]
[1724168902670,0.37013182,58820.0,58809.0,0.3608]
[1724168902873,0.00933182,58820.0,58809.0,0.3608]
[1724168903065,0.067986,58822.0,58809.0,0.3608]
[1724168903364,0.22701171,58822.0,58815.0,0.3608]
[1724168903561,0.217986,58822.0,58815.0,0.3608]
[1724168903768,0.067986,58822.0,58815.0,0.3608]
[1724168905262,0.3608,58817.0,58813.0,0.00011626]
[1724168905474,0.582295,58814.0,58813.0,2.6e-07]
[1724168905660,0.732295,58814.0,58813.0,2.6e-07]
[1724168905859,1.642375,58814.0,58813.0,2.6e-07]
[1724168906259,1.642375,58814.0,58813.0,3.77000026]
[1724168906465,0.06801,58802.0,58796.0,0.3608]
[1724168906770,0.06801,58802.0,58771.0,0.06769969]
[1724168906771,0.068044,58773.0,58768.0,0.3608]
[1724168906961,0.068048,58769.0,58760.0,0.3608]
[1724168907159,0.5143,58776.0,58767.0,0.3608]
[1724168907469,0.06804,58775.0,58769.0,3.77]
[1724168907664,0.3608,58773.0,58769.0,3.77]
[1724168908167,0.068045,58771.0,58769.0,3.77]
[1724168908359,0.468045,58771.0,58769.0,3.77]
[1724168908559,0.578525,58771.0,58769.0,3.77]
[1724168908764,0.51048,58770.0,58769.0,3.77]
[1724168909067,0.66048,58770.0,58769.0,3.77]
[1724168909270,0.428845,58771.0,58769.0,3.77]
[1724168909466,0.00025506,58777.0,58769.0,3.77]
[1724168909467,0.06829306,58777.0,58769.0,3.77]
[1724168909864,0.00025506,58777.0,58769.0,3.77]
[1724168910469,0.00025506,58777.0,58772.0,0.3608]
[1724168910675,0.00025506,58777.0,58773.0,0.1214]
[1724168910864,0.3608,58789.0,58773.0,0.1214]
[1724168910865,0.3608,58789.0,58776.0,0.3608]
[1724168911060,0.3608,58795.0,58787.0,0.3608]
[1724168911260,0.588818,58795.0,58781.0,0.3608]
[1724168911568,0.588818,58795.0,58789.0,0.3608]
[1724168912159,0.588818,58795.0,58786.0,0.00025506]
[1724168912569,0.588818,58795.0,58789.0,0.3608]
[1724168912776,0.068023,58790.0,58786.0,0.00025506]
[1724168912960,0.068023,58790.0,58789.0,3.77]
[1724168912961,0.15,58790.0,58789.0,3.77]
[1724168913270,0.5108,58790.0,58789.0,3.77]
[1724168913473,1.489103,58790.0,58789.0,3.77]
[1724168913768,1.128303,58790.0,58789.0,3.77]
[1724168913963,0.15,58790.0,58789.0,3.77]
[1724168914166,0.3608,58795.0,58789.0,3.77]
[1724168914363,0.3608,58795.0,58789.0,4.1308]
[1724168914772,0.5008,58795.0,58789.0,4.1308]
[1724168916472,0.068022,58791.0,58789.0,3.77]
[1724168916767,0.87108,58790.0,58767.0,0.3608]
[1724168917070,0.06805,58767.0,58760.0,0.3608]
[1724168917268,0.21805,58767.0,58760.0,0.3608]
[1724168917774,0.21805,58767.0,58766.0,3.7702186]
[1724168919676,0.15,58767.0,58766.0,3.7702186]
[1724168919975,0.00805,58767.0,58766.0,3.7702186]
[1724168921471,0.0761,58767.0,58766.0,3.7702186]
[1724168921874,0.00805,58767.0,58766.0,3.7702186]
[1724168922173,0.42910006,58772.0,58766.0,4.1310186]
[1724168922174,0.36105506,58772.0,58766.0,4.1310186]
[1724168922376,0.00025506,58772.0,58771.0,0.428845]
[1724168922569,0.16025506,58772.0,58771.0,0.428845]
[1724168922874,0.17025506,58772.0,58771.0,0.428845]
[1724168924072,0.17025506,58772.0,58771.0,3.838045]
[1724168924874,0.23829906,58772.0,58771.0,3.77]
[1724168927470,0.24765921,58772.0,58771.0,3.77]
[1724168929983,0.068046,58770.0,58766.0,0.0002186]
[1724168930173,0.17,58770.0,58768.0,0.068048]
[1724168930569,0.4413,58769.0,58766.0,3.7712586]
[1724168930876,0.17,58769.0,58766.0,3.7702186]
[1724168931078,0.17,58769.0,58767.0,0.2296]
[1724168931288,0.4413,58768.0,58767.0,0.2296]
[1724168931476,0.6113,58768.0,58767.0,0.2296]
[1724168931981,0.679349,58768.0,58767.0,0.2296]
[1724168932183,0.679349,58768.0,58766.0,3.7710986]
[1724168932184,0.06805,58767.0,58766.0,3.7710986]
[1724168932370,0.2861,58767.0,58766.0,3.7702186]
[1724168932571,1.19658,58767.0,58766.0,0.0002186]
[1724168933687,0.79658,58767.0,58766.0,0.0002186]
[1724168934381,1.19658,58767.0,58766.0,0.0002186]
[1724168934573,0.72853,58767.0,58766.0,0.0002186]
[1724168934772,0.21805,58767.0,58766.0,0.0002186]